bitfinex/quotes_SOLUSD_20250317
["timestamp","ask_amount","ask_price","bid_price","bid_amount"]
[1742213512148,0.03,129.63,129.6,60.78491936]
[1742213513168,23.31237289,129.63,129.6,60.78491936]
[1742213515055,23.31237289,129.63,129.6,68.50091936]
[1742213515968,23.31237289,129.63,129.6,60.78491936]
[1742213516349,23.28237289,129.61,129.6,53.72491936]
[1742213516647,23.28237289,129.61,129.6,60.78491936]
[1742213517860,23.28237289,129.61,129.6,7.06]
[1742213518054,46.56474578,129.61,129.57,53.72491936]
[1742213518368,23.28237289,129.58,129.57,53.72491936]
[1742213519670,30.99957289,129.58,129.57,53.72491936]
[1742213520177,30.99957289,129.58,129.54,7.06]
[1742213520355,23.28237289,129.55,129.54,60.78491936]
[1742213520668,23.28237289,129.55,129.54,53.72491936]
[1742213520979,20.0,129.53,129.52,0.063]
[1742213521270,43.56669603,129.53,129.52,0.063]
[1742213521473,43.56669603,129.53,129.5,0.03]
[1742213521649,43.56669603,129.53,129.47,53.72491936]
[1742213521650,43.28237289,129.51,129.47,53.72491936]
[1742213521854,23.28237289,129.48,129.46,0.063]
[1742213522069,23.28237289,129.47,129.46,0.063]
[1742213522269,31.00607289,129.47,129.46,0.063]
[1742213522851,23.28237289,129.47,129.46,0.063]
[1742213523073,1.6424,129.49,129.46,53.78791936]
[1742213523074,43.28237289,129.49,129.46,53.78791936]
[1742213523272,37.30220505,129.51,129.47,7.06]
[1742213523465,37.30220505,129.51,129.47,60.78491936]
[1742213523666,37.30220505,129.49,129.47,60.78491936]
[1742213524061,37.30220505,129.48,129.47,60.78491936]
[1742213524373,82.3279101,129.48,129.46,0.063]
[1742213524581,37.30220505,129.47,129.46,0.063]
[1742213526481,45.02590505,129.47,129.46,0.063]
[1742213526682,46.81752819,129.47,129.46,0.063]
[1742213526879,46.53320505,129.47,129.46,0.063]
[1742213528163,46.81752819,129.47,129.46,0.063]
[1742213528363,0.14216157,129.43,129.41,0.03]
[1742213528558,74.6044101,129.42,129.41,0.03]
[1742213529286,74.88873324,129.42,129.41,0.03]
[1742213529865,20.0,129.4,129.37,53.75491936]
[1742213530079,57.30220505,129.4,129.37,0.03]
[1742213530284,65.03010505,129.4,129.37,0.03]
[1742213531076,57.30220505,129.4,129.37,0.03]
[1742213531601,65.03010505,129.4,129.37,0.03]
[1742213531968,66.83622819,129.4,129.37,0.03]
[1742213533384,58.82400505,129.4,129.37,0.03]
[1742213533778,57.30220505,129.4,129.37,0.03]
[1742213533966,20.0,129.4,129.37,7.09]
[1742213534170,57.30220505,129.4,129.37,7.09]
[1742213535089,57.30220505,129.4,129.37,14.8196]
[1742213535272,37.30220505,129.41,129.37,68.54451936]
[1742213535475,57.30220505,129.42,129.37,68.54451936]
[1742213535689,37.30220505,129.41,129.39,53.78791936]
[1742213535879,37.30220505,129.4,129.39,53.78791936]
[1742213537902,20.0,129.4,129.39,53.78791936]
[1742213538114,37.30220505,129.42,129.39,53.78791936]
[1742213538402,37.30220505,129.42,129.39,61.51641936]
[1742213539505,37.30220505,129.4,129.39,53.78791936]
[1742213540394,57.30220505,129.41,129.39,53.78791936]
[1742213540605,37.30220505,129.42,129.39,61.51641936]
[1742213540782,37.30220505,129.43,129.39,61.51641936]
[1742213541101,37.30220505,129.42,129.39,61.51641936]
[1742213541300,37.30220505,129.41,129.39,61.51641936]
[1742213541681,37.30220505,129.41,129.39,53.78791936]
[1742213541896,37.30220505,129.4,129.39,53.78791936]
[1742213542399,20.0,129.44,129.39,61.8007425]
[1742213542599,37.30220505,129.43,129.39,61.8007425]
[1742213543107,23.33740009,129.42,129.39,61.8007425]
[1742213543404,23.33740009,129.41,129.39,53.78791936]
[1742213544401,20.0,129.43,129.39,61.51641936]
[1742213544879,23.33740009,129.43,129.39,61.51641936]
[1742213545497,43.33740009,129.45,129.4,42.27137209]
[1742213545795,23.33740009,129.47,129.42,23.33740009]
[1742213546180,23.33740009,129.46,129.42,18.933972]
[1742213546579,23.33740009,129.47,129.43,7.7261]
[1742213546781,23.33740009,129.47,129.43,61.45101936]
[1742213547293,23.33740009,129.46,129.43,61.45101936]
[1742213548393,23.33740009,129.46,129.43,53.72491936]
[1742213548595,23.33740009,129.45,129.43,53.72491936]
[1742213549092,23.33740009,129.44,129.43,53.72491936]
[1742213549801,31.06290009,129.44,129.43,53.72491936]
[1742213550001,23.33740009,129.44,129.43,53.72491936]
[1742213550395,23.33740009,129.45,129.43,53.72491936]
[1742213550787,23.33740009,129.46,129.43,61.45101936]
[1742213551113,23.33740009,129.46,129.43,53.72491936]
[1742213551297,23.33740009,129.46,129.43,61.45091936]
[1742213551599,23.33740009,129.45,129.43,53.72491936]
[1742213551804,0.063,129.44,129.43,53.72491936]
[1742213552495,0.063,129.44,129.43,61.45101936]
[1742213553393,0.063,129.44,129.43,80.38499136]
[1742213553583,0.063,129.44,129.43,103.72239145]
[1742213555200,0.063,129.44,129.43,72.65889136]
[1742213555587,0.063,129.44,129.43,80.38499136]
[1742213555788,0.063,129.44,129.43,72.65889136]
[1742213556606,0.063,129.44,129.43,53.72491936]
[1742213556984,23.40040009,129.44,129.43,53.72491936]
[1742213558082,0.063,129.44,129.43,53.72491936]
[1742213558796,0.063,129.44,129.43,80.38499136]
[1742213560191,0.063,129.44,129.43,103.72239145]
[1742213560687,0.063,129.44,129.43,72.65889136]
[1742213560908,0.063,129.44,129.43,53.72491936]
[1742213561490,0.063,129.44,129.43,80.38499136]
[1742213562887,0.063,129.44,129.43,53.72491936]
[1742213565913,0.063,129.44,129.43,80.38499136]
[1742213566112,0.063,129.44,129.43,53.72491936]
[1742213567806,23.40040009,129.44,129.43,53.72491936]
[1742213568397,23.40040009,129.44,129.41,60.81491936]
[1742213568927,23.40040009,129.44,129.41,68.54221936]
[1742213569698,0.063,129.44,129.41,68.54221936]
[1742213571100,31.12590009,129.44,129.41,60.81491936]
[1742213571845,23.33740009,129.43,129.41,60.81491936]
[1742213572743,0.063,129.44,129.41,60.81491936]
[1742213572910,23.40040009,129.44,129.41,68.54221936]
[1742213573317,23.40040009,129.44,129.41,60.81491936]
[1742213573522,31.12610009,129.44,129.41,60.81491936]
[1742213574625,23.33740009,129.43,129.41,60.81491936]
[1742213575127,23.33740009,129.43,129.41,53.75491936]
[1742213575423,23.33740009,129.42,129.41,0.03]
[1742213576004,23.33740009,129.43,129.41,0.03]
[1742213576818,31.06360009,129.43,129.41,0.03]
[1742213577014,23.33740009,129.43,129.41,0.03]
[1742213577333,0.063,129.44,129.41,96.02629145]
[1742213577625,0.063,129.44,129.41,72.68889136]
[1742213578441,31.12610009,129.44,129.41,53.75491936]
[1742213578724,23.33740009,129.43,129.41,53.75491936]
[1742213579223,31.12610009,129.44,129.41,53.75491936]
[1742213579403,0.063,129.44,129.41,84.81961945]
[1742213579711,0.063,129.44,129.42,23.33740009]
[1742213579916,0.063,129.44,129.43,18.933972]
[1742213580124,0.063,129.44,129.43,42.27137209]
[1742213581037,0.063,129.44,129.43,18.933972]
[1742213581211,0.063,129.44,129.43,49.99747209]
[1742213581405,0.063,129.44,129.43,104.00671459]
[1742213581616,0.063,129.5,129.44,53.66191936]
[1742213581807,0.063,129.5,129.47,23.33740009]
[1742213582002,0.063,129.5,129.47,76.99931945]
[1742213582635,23.33740009,129.48,129.47,53.66191936]
[1742213583922,0.063,129.5,129.47,53.66191936]
[1742213584129,23.40040009,129.5,129.47,53.66191936]
[1742213584310,23.33740009,129.49,129.47,53.66191936]
[1742213584719,23.33740009,129.48,129.47,53.66191936]
[1742213585626,23.33740009,129.49,129.47,53.66191936]
[1742213586509,23.33740009,129.48,129.47,53.66191936]
[1742213586905,20.0,129.45,129.43,53.66191936]
[1742213587110,23.33740009,129.44,129.41,0.03]
[1742213587309,23.33740009,129.42,129.41,0.03]
[1742213587727,31.06410009,129.42,129.41,0.03]
[1742213588629,54.40150018,129.42,129.41,0.03]
[1742213589028,54.68582332,129.42,129.41,0.03]
[1742213589218,20.0,129.4,129.39,0.063]
[1742213589424,51.06530009,129.4,129.39,0.063]
[1742213595119,20.0,129.4,129.39,0.063]
[1742213595321,43.33740009,129.4,129.39,0.063]
[1742213596314,51.06530009,129.4,129.39,0.063]
[1742213598734,51.34962323,129.4,129.39,0.063]
[1742213599539,51.34962323,129.4,129.39,0.0001]
[1742213600318,15.6472,129.39,129.37,0.03]
[1742213600526,46.95912332,129.38,129.37,0.03]
[1742213602127,54.68822332,129.38,129.37,0.03]
[1742213602526,31.35082323,129.38,129.37,0.03]
[1742213603839,23.33740009,129.38,129.37,0.03]
[1742213604218,31.06650009,129.38,129.37,0.03]
[1742213604618,23.33740009,129.38,129.37,0.03]
[1742213605134,23.33740009,129.39,129.37,0.03]
[1742213606142,23.33740009,129.4,129.37,7.7597]
[1742213606323,23.33740009,129.41,129.37,7.7597]
[1742213606523,23.33740009,129.4,129.37,7.7597]
[1742213607419,23.33740009,129.4,129.37,0.03]
[1742213607853,9.44066157,129.43,129.37,0.03]
[1742213607854,23.33740009,129.38,129.37,0.03]
[1742213610343,31.06650009,129.38,129.37,0.03]
[1742213613624,23.33740009,129.38,129.37,0.03]
[1742213615349,31.06650009,129.38,129.37,0.03]
[1742213618649,54.68822332,129.38,129.37,0.03]
[1742213618836,56.28812332,129.38,129.37,0.03]
[1742213619248,56.28812332,129.38,129.35,0.063]
[1742213619249,27.7303,129.36,129.35,0.063]
[1742213619553,74.40510018,129.36,129.35,0.063]
[1742213623753,74.68942332,129.36,129.35,0.063]
[1742213624137,51.06770009,129.36,129.35,0.063]
[1742213625150,21.27012314,129.38,129.35,7.123]
[1742213625151,7.7923,129.38,129.35,7.123]
[1742213625353,23.40040009,129.38,129.35,7.123]
[1742213626557,23.33740009,129.36,129.35,7.123]
[1742213627267,31.06770009,129.36,129.35,7.123]
[1742213630744,31.06770009,129.36,129.35,0.063]
[1742213630943,54.68942332,129.36,129.35,0.063]
[1742213634553,20.28432314,129.33,129.31,0.063]
[1742213634750,20.0,129.33,129.31,0.063]
[1742213634948,23.33740009,129.32,129.31,0.063]
[1742213635865,31.07010009,129.32,129.31,0.063]
[1742213636963,31.35442323,129.32,129.31,0.063]
[1742213637463,7.7309,129.35,129.31,0.063]
[1742213637669,23.33740009,129.32,129.31,0.063]
[1742213638167,7.7319,129.34,129.31,0.063]
[1742213638375,23.62172323,129.36,129.31,0.063]
[1742213638579,43.33740009,129.34,129.31,0.063]
[1742213638778,23.33740009,129.35,129.32,7.06]
[1742213639147,23.33740009,129.33,129.32,7.06]
[1742213640256,31.06950009,129.33,129.31,0.063]
[1742213640457,23.33740009,129.32,129.31,0.063]
[1742213642172,31.07010009,129.32,129.31,0.063]
[1742213644575,56.20752332,129.32,129.31,0.063]
[1742213644773,20.28432314,129.3,129.29,0.43183145]
[1742213644959,23.33740009,129.27,129.26,0.03]
[1742213646076,31.07310009,129.27,129.26,0.03]
[1742213646963,23.33740009,129.27,129.26,0.03]
[1742213656464,31.07310009,129.27,129.26,0.03]
[1742213656658,23.33740009,129.27,129.26,0.03]
[1742213661366,31.07310009,129.27,129.26,0.03]
[1742213661769,0.28432314,129.26,129.25,0.03]
[1742213661983,46.44885248,129.26,129.25,0.03]
[1742213662580,20.0,129.24,129.23,2.7533903]
[1742213662790,66.67480018,129.24,129.22,0.03]
[1742213663083,23.33740009,129.23,129.22,0.03]
[1742213663284,20.0,129.2,129.18,0.03]
[1742213663488,46.67480018,129.19,129.13,0.03]
[1742213663682,23.33740009,129.16,129.13,0.03]
[1742213663883,23.33740009,129.15,129.13,53.69191936]
[1742213664073,23.33740009,129.14,129.13,0.03]
[1742213664493,46.67480018,129.14,129.13,0.03]
[1742213664683,23.33740009,129.14,129.13,0.03]
[1742213665185,46.67480018,129.14,129.13,0.03]
[1742213665377,54.41830018,129.14,129.13,0.03]
[1742213665891,54.70262332,129.14,129.07,60.72191936]
[1742213666191,23.33740009,129.08,129.07,53.66191936]
[1742213666486,23.33740009,129.09,129.07,60.72191936]
[1742213668178,23.33740009,129.08,129.07,60.72191936]
[1742213668373,23.33740009,129.09,129.07,60.72191936]
[1742213669880,23.33740009,129.11,129.07,68.46951936]
[1742213670302,23.33740009,129.1,129.07,68.46951936]
[1742213670686,20.0,129.15,129.08,42.27137209]
[1742213670887,23.33740009,129.13,129.08,95.93329145]
[1742213671096,23.33740009,129.14,129.09,23.33740009]
[1742213671295,43.33740009,129.15,129.1,23.33740009]
[1742213671502,23.33740009,129.13,129.11,7.06]
[1742213671798,23.33740009,129.12,129.08,60.72191936]
[1742213672096,20.0,129.15,129.09,18.64964886]
[1742213672277,23.33740009,129.13,129.09,72.31156822]
[1742213672477,23.33740009,129.11,129.09,26.7108743]
[1742213672679,23.33740009,129.1,129.08,7.06]
[1742213673880,23.33740009,129.11,129.08,14.8066]
[1742213674396,43.33740009,129.13,129.08,38.14400009]
[1742213674600,23.33740009,129.09,129.08,7.06]
[1742213674984,23.33740009,129.09,129.06,0.03]
[1742213675186,23.33740009,129.08,129.06,0.03]
[1742213676510,7.7456,129.11,129.06,0.03]
[1742213676683,0.28432314,129.15,129.06,50.07827439]
[1742213676879,20.0,129.13,129.08,23.33740009]
[1742213677093,23.33740009,129.12,129.09,7.06]
[1742213677296,23.33740009,129.1,129.09,7.06]
[1742213677492,23.33740009,129.11,129.09,7.06]
[1742213678190,23.33740009,129.1,129.09,7.06]
[1742213678889,27.7446,129.13,129.09,7.06]
[1742213679100,23.33740009,129.12,129.09,7.06]
[1742213679807,1.5359,129.2,129.1,23.33740009]
[1742213680102,23.33740009,129.16,129.1,50.04827439]
[1742213680311,23.33740009,129.15,129.1,50.04827439]
[1742213680496,23.33740009,129.14,129.1,26.7108743]
[1742213680682,23.33740009,129.13,129.1,26.7108743]
[1742213680887,23.33740009,129.12,129.09,7.06]
[1742213681108,23.33740009,129.12,129.09,14.8064]
[1742213681308,0.14216157,129.16,129.09,7.06]
[1742213681508,23.33740009,129.11,129.09,7.06]
[1742213682692,23.33740009,129.12,129.09,7.06]
[1742213683805,0.063,129.13,129.09,7.06]
[1742213683806,23.40040009,129.13,129.09,14.8064]
[1742213683984,0.063,129.13,129.09,38.14380009]
[1742213684803,0.063,129.13,129.09,64.85467439]
[1742213686113,0.063,129.13,129.1,23.33740009]
[1742213686410,0.063,129.13,129.11,7.7453]
[1742213687009,0.063,129.13,129.12,23.33740009]
[1742213687429,0.063,129.13,129.12,50.04827439]
[1742213688091,0.063,129.13,129.12,50.33259753]
[1742213688614,0.063,129.13,129.12,52.04873821]
[1742213691128,0.063,129.13,129.12,20.68231498]
[1742213691597,0.063,129.13,129.09,60.42311507]
[1742213691958,0.063,129.13,129.09,58.82601507]
[1742213692413,0.063,129.13,129.1,7.06]
[1742213692723,23.40040009,129.13,129.1,7.06]
[1742213694213,0.063,129.13,129.1,7.06]
[1742213695222,23.40040009,129.13,129.1,7.06]
[1742213695397,23.40040009,129.13,129.09,20.68231498]
[1742213695602,23.33740009,129.12,129.09,20.68231498]
[1742213695802,23.33740009,129.12,129.09,20.71231498]
[1742213696004,23.40040009,129.13,129.09,20.71231498]
[1742213697008,31.14500009,129.13,129.09,20.71231498]
[1742213698116,31.14500009,129.13,129.09,28.45871498]
[1742213698304,31.14500009,129.13,129.09,20.71231498]
[1742213698501,23.33740009,129.12,129.09,0.03]
[1742213698714,23.33740009,129.11,129.09,0.03]
[1742213699217,31.08270009,129.12,129.09,0.03]
[1742213699599,23.33740009,129.11,129.09,0.03]
[1742213700196,23.33740009,129.1,129.09,0.03]
[1742213701113,31.08330009,129.1,129.09,0.03]
[1742213702435,23.33740009,129.1,129.09,0.03]
[1742213702604,31.08330009,129.1,129.09,0.03]
[1742213703798,31.08330009,129.1,129.06,7.09]
[1742213703998,23.33740009,129.09,129.06,7.09]
[1742213704214,23.33740009,129.1,129.06,14.838]
[1742213704516,43.33740009,129.12,129.06,38.17540009]
[1742213704697,23.33740009,129.11,129.06,38.17540009]
[1742213705018,43.33740009,129.12,129.07,23.33740009]
[1742213705213,51.08210009,129.12,129.08,7.7471]
[1742213705417,23.33740009,129.11,129.07,7.7474]
[1742213705716,23.33740009,129.1,129.06,7.09]
[1742213705900,23.33740009,129.11,129.06,30.42740009]
[1742213706414,23.33740009,129.1,129.06,7.09]
[1742213707007,23.33740009,129.09,129.06,7.09]
[1742213707204,31.08440009,129.09,129.06,7.09]
[1742213708809,51.14540009,129.12,129.07,31.08510009]
[1742213709618,23.33740009,129.11,129.07,7.7477]
[1742213710119,31.08280009,129.11,129.06,14.838]
[1742213710327,31.08280009,129.11,129.06,38.17540009]
[1742213711406,23.33740009,129.11,129.06,38.17540009]
[1742213711708,43.40040009,129.12,129.07,23.33740009]
[1742213712112,51.14530009,129.12,129.07,23.33740009]
[1742213712513,23.33740009,129.11,129.06,38.17540009]
[1742213712720,23.33740009,129.1,129.06,14.838]
[1742213712907,23.33740009,129.1,129.06,38.17540009]
[1742213713623,23.33740009,129.08,129.06,0.03]
[1742213713825,23.33740009,129.07,129.06,0.03]
[1742213714324,23.33740009,129.09,129.06,0.03]
[1742213715429,23.33740009,129.08,129.06,0.03]
[1742213715620,31.08490009,129.08,129.06,0.03]
[1742213716021,31.08420009,129.09,129.06,0.03]
[1742213716951,23.33740009,129.09,129.06,0.03]
[1742213717730,11.91343452,129.1,129.06,0.03]
[1742213717919,11.91343452,129.1,129.07,23.33740009]
[1742213718114,11.91343452,129.1,129.06,23.36740009]
[1742213718335,11.91343452,129.1,129.08,23.33740009]
[1742213718633,11.91343452,129.11,129.09,7.06]
[1742213719415,42.99613461,129.11,129.09,7.06]
[1742213720226,23.33740009,129.1,129.09,7.06]
[1742213720442,23.33740009,129.1,129.06,27.77231498]
[1742213720630,23.33740009,129.1,129.06,35.52061498]
[1742213721740,31.08340009,129.1,129.06,28.46061498]
[1742213722042,23.33740009,129.09,129.07,7.06]
[1742213722240,23.33740009,129.08,129.06,0.03]
[1742213722417,43.33740009,129.07,129.06,0.03]
[1742213723242,43.62172323,129.07,129.06,0.03]
[1742213723842,51.36942323,129.07,129.06,0.03]
[1742213724537,51.08510009,129.07,129.06,0.03]
[1742213724925,51.36942323,129.07,129.06,0.03]
[1742213725526,51.08510009,129.07,129.06,0.03]
[1742213725729,43.33740009,129.07,129.06,0.03]
[1742213725945,51.08510009,129.07,129.06,0.03]
[1742213729540,51.08510009,129.07,129.06,0.03]
[1742213730730,51.36942323,129.07,129.06,0.03]
[1742213731057,70.01907209,129.07,129.06,0.03]
[1742213731245,51.08510009,129.07,129.06,0.03]
[1742213732334,62.99853461,129.07,129.06,0.03]
[1742213737357,23.33740009,128.99,128.96,2.7833903]
[1742213738172,31.08940009,129.0,128.96,2.7833903]
[1742213738573,23.33740009,128.99,128.96,2.7833903]
[1742213739560,23.33740009,128.98,128.96,2.7833903]
[1742213739886,23.33740009,128.97,128.96,2.7833903]
[1742213740179,23.33740009,128.98,128.96,2.7833903]
[1742213740572,0.28432314,128.99,128.96,2.7833903]
[1742213740771,20.0,129.0,128.96,2.7833903]
[1742213740970,20.0,129.0,128.96,10.5374903]
[1742213741152,23.33740009,128.99,128.96,2.7833903]
[1742213741452,23.33740009,128.98,128.96,2.7833903]
[1742213741659,23.33740009,128.97,128.96,2.7833903]
[1742213741884,23.33740009,128.98,128.96,2.7833903]
[1742213742458,23.33740009,128.97,128.96,2.7833903]
[1742213742954,23.33740009,128.97,128.91,28.43921498]
[1742213742955,20.0,128.94,128.88,34.95281498]
[1742213743161,43.33740009,128.94,128.88,42.01281498]
[1742213743389,23.33740009,128.93,128.88,65.35021507]
[1742213743573,20.0,128.94,128.88,65.35021507]
[1742213743758,23.33740009,128.93,128.88,65.35021507]
[1742213744152,23.33740009,128.92,128.88,21.3305]
[1742213744354,23.33740009,128.92,128.88,14.2705]
[1742213744551,23.33740009,128.91,128.89,7.06]
[1742213745060,23.33740009,128.92,128.89,7.06]
[1742213745381,23.33740009,128.91,128.89,7.06]
[1742213745561,23.33740009,128.92,128.89,7.06]
[1742213746262,7.7556,128.94,128.89,7.06]
[1742213746263,23.33740009,128.91,128.89,7.06]
[1742213746457,23.33740009,128.91,128.89,14.8183]
[1742213746659,23.33740009,128.91,128.88,14.8189]
[1742213747075,23.33740009,128.9,128.85,50.34321507]
[1742213747275,23.33740009,128.9,128.86,7.06]
[1742213747459,23.33740009,128.89,128.86,7.76]
[1742213747660,0.28432314,128.91,128.85,6.3235]
[1742213747860,23.33740009,128.87,128.85,7.06]
[1742213748258,23.33740009,128.87,128.84,7.7614]
[1742213748461,7.7596,128.88,128.84,7.06]
[1742213748665,23.33740009,128.86,128.84,7.06]
[1742213748874,23.33740009,128.85,128.84,7.06]
[1742213749072,23.33740009,128.85,128.82,7.06]
[1742213749268,7.7579,128.9,128.81,66.71371507]
[1742213749585,43.33740009,128.87,128.82,23.33740009]
[1742213749755,7.7579,128.9,128.82,23.33740009]
[1742213749960,23.33740009,128.87,128.83,23.33740009]
[1742213750155,23.33740009,128.85,128.81,14.8233]
[1742213750385,23.33740009,128.85,128.81,7.7633]
[1742213750571,23.33740009,128.88,128.81,7.06]
[1742213750572,23.33740009,128.84,128.81,7.06]
[1742213750764,7.7601,128.87,128.78,7.7651]
[1742213750765,23.33740009,128.83,128.78,7.7651]
[1742213751075,23.33740009,128.84,128.79,30.39740009]
[1742213751479,23.33740009,128.86,128.81,23.33740009]
[1742213751793,23.33740009,128.86,128.81,44.01971507]
[1742213752286,1.532,128.91,128.85,7.7609]
[1742213752581,23.33740009,128.89,128.86,7.06]
[1742213752766,1.532,128.91,128.86,7.06]
[1742213752967,23.33740009,128.88,128.86,7.06]
[1742213753358,23.33740009,128.87,128.86,7.06]
[1742213754162,0.14216157,128.9,128.86,7.06]
[1742213754359,23.33740009,128.86,128.83,14.822]
[1742213754776,23.33740009,128.87,128.83,14.822]
[1742213756064,23.33740009,128.88,128.83,44.20580009]
[1742213756275,23.33740009,128.89,128.84,23.33740009]
[1742213756471,23.33740009,128.92,128.87,23.33740009]
[1742213756672,23.33740009,128.92,128.88,14.8186]
[1742213757169,23.33740009,128.91,128.88,14.8186]
[1742213759574,23.33740009,128.92,128.88,14.8186]
[1742213760083,0.14216157,128.94,128.88,14.8186]
[1742213760386,23.33740009,128.93,128.88,57.55380009]
[1742213760562,23.33740009,128.94,128.89,23.33740009]
[1742213760768,23.33740009,128.93,128.88,57.55380009]
[1742213760969,23.33740009,128.92,128.88,14.8186]
[1742213761185,23.33740009,128.92,128.88,27.74231498]
[1742213761374,23.33740009,128.89,128.88,20.68231498]
[1742213761571,23.33740009,128.89,128.86,14.8199]
[1742213762671,23.33740009,128.89,128.86,7.06]
[1742213763179,23.33740009,128.87,128.84,27.74231498]
[1742213763488,23.33740009,128.86,128.84,27.74231498]
[1742213763868,23.33740009,128.87,128.84,27.74231498]
[1742213764075,23.33740009,128.87,128.84,35.50361498]
[1742213764789,23.33740009,128.88,128.84,35.50361498]
[1742213765192,23.33740009,128.9,128.85,23.33740009]
[1742213765393,23.33740009,128.89,128.85,20.68231498]
[1742213765774,23.33740009,128.9,128.85,44.01971507]
[1742213765976,20.0,128.91,128.85,44.01971507]
[1742213766178,23.33740009,128.9,128.85,44.01971507]
[1742213766691,23.33740009,128.9,128.86,7.7603]
[1742213767093,23.33740009,128.91,128.86,31.09770009]
[1742213767879,23.33740009,128.9,128.86,7.7603]
[1742213769299,23.33740009,128.9,128.85,51.78031507]
[1742213769779,23.33740009,128.89,128.85,28.44291498]
[1742213770195,23.33740009,128.9,128.85,51.78031507]
[1742213770792,23.33740009,128.89,128.85,28.44291498]
[1742213771790,23.33740009,128.9,128.85,51.78031507]
[1742213771997,23.33740009,128.89,128.85,28.44291498]
[1742213772674,23.33740009,128.92,128.87,23.33740009]
[1742213773390,23.33740009,128.93,128.88,23.33740009]
[1742213773590,23.33740009,128.92,128.88,20.68231498]
[1742213773987,23.33740009,128.92,128.88,28.44111498]
[1742213774187,23.33740009,128.9,128.88,20.68231498]
[1742213774898,23.33740009,128.89,128.88,20.68231498]
[1742213775075,23.33740009,128.89,128.85,28.44301498]
[1742213775280,23.33740009,128.88,128.85,20.68231498]
[1742213775698,23.33740009,128.88,128.85,332.68231498]
[1742213775999,23.33740009,128.89,128.85,340.44321498]
[1742213777090,23.33740009,128.9,128.85,363.78061507]
[1742213778205,23.33740009,128.91,128.86,23.33740009]
[1742213779013,23.33740009,128.89,128.85,340.44321498]
[1742213779188,23.33740009,128.88,128.85,332.68231498]
[1742213779385,23.33740009,128.88,128.85,319.7608]
[1742213779890,23.33740009,128.88,128.85,312.0]
[1742213780115,23.33740009,128.89,128.85,319.7608]
[1742213781105,31.09600009,128.89,128.85,319.7608]
[1742213781301,23.33740009,128.88,128.84,7.06]
[1742213781505,23.33740009,128.87,128.84,20.68231498]
[1742213781700,23.33740009,128.85,128.83,7.06]
[1742213782389,23.33740009,128.86,128.83,7.06]
[1742213783017,7.7591,128.88,128.83,7.06]
[1742213783315,23.33740009,128.86,128.83,7.06]
[1742213785507,23.33740009,128.86,128.83,14.822]
[1742213785893,23.33740009,128.87,128.83,14.822]
[1742213786107,23.33740009,128.88,128.83,38.15940009]
[1742213786898,23.33740009,128.87,128.83,14.822]
[1742213787398,23.33740009,128.87,128.83,38.15940009]
[1742213787609,23.33740009,128.87,128.83,58.84171507]
[1742213788124,23.33740009,128.84,128.83,20.68231498]
[1742213788415,23.33740009,128.84,128.81,7.06]
[1742213788720,23.33740009,128.84,128.79,28.44651498]
[1742213788899,23.33740009,128.84,128.8,7.06]
[1742213789306,23.33740009,128.82,128.78,6.3152]
[1742213789617,23.33740009,128.83,128.78,57.39491507]
[1742213789812,23.33740009,128.83,128.78,65.15991507]
[1742213790006,23.33740009,128.83,128.79,23.33740009]
[1742213790415,23.33740009,128.83,128.79,335.33740009]
[1742213791215,23.33740009,128.85,128.8,23.33740009]
[1742213791397,31.09850009,128.85,128.8,23.33740009]
[1742213791597,23.33740009,128.84,128.79,356.01971507]
[1742213791798,31.09950009,128.83,128.79,332.68231498]
[1742213792500,0.14216157,128.86,128.79,363.78411507]
[1742213792707,23.33740009,128.84,128.79,363.78411507]
[1742213793108,23.33740009,128.83,128.79,332.68231498]
[1742213793699,23.33740009,128.83,128.79,20.68231498]
[1742213794320,31.10000009,128.83,128.79,20.68231498]
[1742213794619,23.33740009,128.82,128.79,20.68231498]
[1742213795124,23.33740009,128.83,128.79,28.44661498]
[1742213795616,23.33740009,128.84,128.79,58.86401507]
[1742213795814,23.33740009,128.85,128.8,23.33740009]
[1742213796022,23.33740009,128.86,128.81,23.33740009]
[1742213796322,23.33740009,128.85,128.79,54.93801498]
[1742213796509,23.33740009,128.84,128.79,78.27541507]